bitfinex/quotes_ETHUSD_20220109
["timestamp","ask_amount","ask_price","bid_price","bid_amount"]
[1641690633883,0.79901,3129.8,3129.3,2.84307741]
[1641690634083,0.00227369,3129.7,3129.3,1.84779792]
[1641690634287,0.00227369,3129.7,3129.2,1.76748241]
[1641690634483,0.00170527,3129.6,3129.3,0.79899]
[1641690634682,0.00170527,3129.6,3129.2,1.76748241]
[1641690634884,0.00113685,3129.5,3129.2,2.76748241]
[1641690635084,0.00113685,3129.5,3129.2,1.76748241]
[1641690635286,0.79901,3129.8,3129.2,1.76748241]
[1641690635484,0.79901,3129.8,3129.3,0.00227369]
[1641690636087,0.79901,3129.8,3129.3,1.84798431]
[1641690636487,0.79901,3129.8,3129.4,0.00170527]
[1641690638733,0.79896,3130.0,3129.4,0.00170527]
[1641690645333,0.0022737,3130.1,3129.4,0.00170527]
[1641690645733,0.00170527,3130.0,3129.4,0.00170527]
[1641690646034,45.87676362,3132.7,3130.6,1.82899328]
[1641690646234,1.27768402,3130.8,3130.6,1.82899328]
[1641690646637,2.32902822,3130.8,3130.6,1.82899328]
[1641690647435,2.39705,3130.7,3130.6,1.82899328]
[1641690648894,4.55,3130.6,3129.3,0.00397896]
[1641690649094,1.25909,3130.5,3129.3,0.00397896]
[1641690649397,1.59845,3129.9,3129.3,0.00397896]
[1641690649594,0.46,3129.8,3129.3,0.00397896]
[1641690649793,0.7091468,3129.7,3129.2,0.00454738]
[1641690649994,1.1691468,3129.7,3129.2,0.00454738]
[1641690650795,0.79923,3129.5,3129.2,0.00454738]
[1641690650994,0.79923,3129.5,3128.6,6.378993]
[1641690650995,0.79923,3129.5,3129.1,0.00511581]
[1641690651195,0.79923,3129.5,3128.8,0.00682108]
[1641690651396,0.79923,3129.5,3128.7,0.0073895]
[1641690653848,0.72428485,3128.8,3128.7,0.0073895]
[1641690654047,1.52359485,3128.8,3128.7,0.0073895]
[1641690654246,1.52359485,3128.8,3128.6,0.00795792]
[1641690654448,1.52359485,3128.8,3128.5,0.00056842]
[1641690654449,4.55,3128.7,3128.5,0.00056842]
[1641690654652,5.01,3128.6,3128.4,1.40071571]
[1641690654851,5.01,3128.6,3127.4,3.40776461]
[1641690654852,4.55,3128.5,3127.4,3.40776461]
[1641690655149,0.79967,3128.0,3127.5,0.00625266]
[1641690655349,0.46,3127.9,3127.5,0.00625266]
[1641690655747,0.53118739,3127.9,3127.5,0.00625266]
[1641690656147,2.13060509,3127.9,3127.5,0.00625266]
[1641690656385,2.13060509,3127.9,3127.5,3.2]
[1641690656386,2.33540509,3127.9,3127.5,3.2]
[1641690656586,3.13511509,3127.9,3127.5,3.05]
[1641690656785,1.59939,3127.7,3127.6,0.00568424]
[1641690657188,5.32940509,3127.9,3127.6,0.00568424]
[1641690657189,3.32043293,3127.9,3127.6,0.00568424]
[1641690657387,0.85236912,3127.8,3127.6,0.00568424]
[1641690658688,1.59939,3127.7,3127.6,0.00568424]
[1641690660144,2.05939,3127.7,3127.6,0.00568424]
[1641690660340,1.65205912,3127.8,3127.6,0.00568424]
[1641690660341,0.79969,3127.8,3127.6,1.92792866]
[1641690660541,0.07118739,3128.6,3127.6,1.92792866]
[1641690660542,1.59882,3128.4,3127.6,1.92792866]
[1641690660743,0.16685106,3128.7,3127.7,0.00511582]
[1641690661640,0.16685106,3128.7,3127.9,1.09832614]
[1641690661840,5.19190708,3129.0,3128.0,1.80740967]
[1641690662039,0.46,3128.9,3128.0,0.00341055]
[1641690662244,0.46170527,3128.9,3128.1,0.00284212]
[1641690662439,0.46170527,3128.9,3128.0,0.00341055]
[1641690662440,0.00113684,3128.8,3128.0,0.00341055]
[1641690662640,0.00113684,3128.8,3128.1,0.00284212]
[1641690662840,0.00113684,3128.8,3127.9,0.00397897]
[1641690663039,0.79934,3128.4,3128.0,0.00341055]
[1641690663241,0.79934,3128.4,3128.0,1.36285913]
[1641690663641,0.79934,3128.4,3128.1,1.82133741]
[1641690663892,0.00113684,3128.8,3128.1,0.60284212]
[1641690664092,0.00113684,3128.8,3128.3,0.73549851]
[1641690664391,0.00113684,3128.8,3128.4,2.96131685]
[1641690664592,0.00113684,3128.8,3128.6,1.598]
[1641690664799,0.00113684,3128.8,3128.7,5.91269016]
[1641690665194,0.00113684,3128.8,3128.7,6.91269016]
[1641690665495,0.00113684,3128.8,3128.7,1.36269016]
[1641690665997,0.00113684,3128.8,3128.7,5.01269016]
[1641690666194,0.00113684,3128.8,3128.7,6.90717654]
[1641690666994,0.00113684,3128.8,3128.7,3.25717654]
[1641690668037,0.79912,3129.3,3128.8,3.8]
[1641690668237,0.79912,3129.3,3128.7,3.25717654]
[1641690668238,0.79912,3129.3,3128.9,1.86871145]
[1641690668439,0.0022737,3129.2,3128.9,1.86871145]
[1641690668637,0.0022737,3129.2,3128.7,3.25752053]
[1641690668838,0.00170527,3129.1,3128.7,3.25752053]
[1641690669237,0.79912,3129.3,3128.8,0.79913]
[1641690669238,0.00113685,3129.0,3128.8,0.79913]
[1641690669639,0.00113685,3129.0,3128.4,3.16433685]
[1641690669840,0.00113685,3129.0,3128.5,1.99483849]
[1641690670040,0.00113685,3129.0,3128.5,1.99654376]
[1641690670239,0.00113685,3129.0,3128.6,0.80031684]
[1641690670438,0.00113685,3129.0,3128.7,2.02119958]
[1641690670639,0.00113685,3129.0,3128.7,2.82027568]
[1641690671511,0.00113685,3129.0,3128.9,1.2346102]
[1641690672599,0.00113685,3129.0,3128.7,0.79908]
[1641690672996,0.00113685,3129.0,3128.6,1.8317362]
[1641690673196,0.00113685,3129.0,3128.6,0.00113684]
[1641690673397,1.67703707,3130.1,3128.7,3.15]
[1641690673597,1.67703707,3130.1,3128.8,1.91006955]
[1641690673798,1.67703707,3130.1,3128.8,1.84388396]
[1641690673799,0.00170527,3129.3,3128.8,1.84388396]
[1641690674004,0.79914,3129.2,3128.8,0.00113685]
[1641690674199,0.80027685,3129.2,3128.8,0.80024685]
[1641690674398,0.80027685,3129.2,3128.8,0.79911]
[1641690675000,0.00113685,3129.2,3128.9,1.83969465]
[1641690676438,0.00113685,3129.2,3128.9,5.03969465]
[1641690677239,1.59814,3129.8,3129.2,0.0022737]
[1641690677439,1.05518992,3130.1,3129.2,0.0022737]
[1641690677440,0.79906,3129.5,3129.2,0.0022737]
[1641690682506,0.46755922,3131.1,3130.4,5.95656008]
[1641690682754,5.91,3130.8,3130.7,4.56268939]
[1641690682948,0.46,3132.4,3130.8,4.55]
[1641690682949,0.79848,3131.9,3130.8,4.55]
[1641690683150,6.16,3131.2,3130.9,3.0]
[1641690683345,0.46,3132.4,3130.9,2.1]
[1641690683346,0.01477901,3132.3,3130.9,2.1]
[1641690683546,0.01477901,3132.3,3131.0,2.0]
[1641690683747,0.77608609,3132.3,3131.3,2.0]
[1641690683946,0.77608609,3132.3,3131.2,1.38315102]
[1641690684147,1.57447609,3132.3,3131.4,0.00454739]
[1641690684348,1.57447609,3132.3,3131.3,0.00511581]
[1641690684549,1.57447609,3132.3,3131.4,0.00454739]
[1641690684748,1.57447609,3132.3,3131.1,0.00625266]
[1641690685450,1.57447609,3132.3,3131.1,1.03554406]
[1641690685651,1.57447609,3132.3,3131.2,2.69405135]
[1641690685948,1.57447609,3132.3,3131.3,0.00511581]
[1641690686987,1.52447609,3132.3,3131.3,0.00511581]
[1641690687187,1.52447609,3132.3,3131.2,3.2]
[1641690687390,0.77368658,3131.6,3131.3,0.00511581]
[1641690687788,0.7987,3131.5,3131.3,0.00511581]
[1641690690848,5.20977088,3131.4,3131.3,0.00511581]
[1641690691242,0.65977088,3131.4,3131.3,0.00511581]
[1641690691749,0.7987,3131.5,3131.3,0.00511581]
[1641690691946,0.79854,3131.7,3131.3,0.00511581]
[1641690692745,0.69313879,3131.6,3131.3,0.00511581]
[1641690692945,1.59741,3131.5,3131.3,0.00511581]
[1641690693746,1.59741,3131.5,3131.2,3.15511581]
[1641690694594,1.54741,3131.5,3131.2,3.15511581]
[1641690695795,0.79854,3131.7,3131.2,3.15511581]
[1641690696194,0.00170527,3131.6,3131.2,3.15511581]
[1641690696595,0.00113685,3131.5,3131.2,3.15511581]
[1641690696996,1.54844685,3131.5,3131.2,3.15511581]
[1641690697196,1.54844685,3131.5,3131.3,0.00113685]
[1641690698437,0.79864,3131.6,3131.3,0.00113685]
[1641690698641,1.66724685,3131.8,3131.3,0.00113685]
[1641690699038,0.00113684,3131.7,3131.3,0.00113685]
[1641690700443,0.00113684,3131.7,3131.3,1.82321798]
[1641690700643,0.00113684,3131.7,3131.3,2.62169798]
[1641690701042,0.00113684,3131.7,3131.3,4.21855348]
[1641690702189,0.79616632,3132.0,3131.3,4.21855348]
[1641690702391,0.79616632,3132.0,3131.4,0.00170527]
[1641690702590,0.00113685,3131.9,3131.4,0.00170527]
[1641690702791,0.7985,3131.8,3131.4,0.00170527]
[1641690704090,0.7985,3131.8,3131.3,0.00227369]
[1641690704891,0.00113685,3131.9,3131.3,1.88849834]
[1641690705143,0.00113685,3131.9,3131.3,2.68691834]
[1641690705336,0.00113685,3131.9,3131.4,0.00170527]
[1641690705538,1.59824685,3131.9,3131.4,0.00170527]
[1641690705937,1.59824685,3131.9,3131.3,0.00227369]
[1641690706537,0.64728732,3131.8,3131.3,0.00227369]
[1641690706739,1.44576732,3131.8,3131.3,0.00227369]
[1641690706940,1.44576732,3131.8,3131.2,0.42775672]
[1641690706941,5.01,3131.7,3131.2,0.42775672]
[1641690707139,6.68116108,3131.7,3131.2,0.42775672]
[1641690707338,0.00170527,3131.6,3131.2,0.42775672]
[1641690707538,0.87171716,3131.6,3131.2,0.42775672]
[1641690707740,0.07232424,3131.5,3131.2,0.42775672]
[1641690708140,0.00113685,3131.5,3131.2,0.42775672]
[1641690711393,0.00113685,3131.5,3131.2,5.672e-05]
[1641690711394,5.34887,3131.3,3131.2,5.672e-05]
[1641690711595,5.80887,3131.3,3131.2,5.672e-05]
[1641690711794,0.79888,3131.1,3130.3,3.40594304]
[1641690712092,2.3966784,3131.1,3130.5,0.00454739]
[1641690712296,0.07118739,3131.0,3130.5,0.00454739]
[1641690712746,0.7989,3130.8,3130.5,0.00454739]
[1641690712945,0.79887,3131.2,3130.5,0.00454739]
[1641690712946,0.00113685,3131.5,3130.5,2.00454739]
[1641690713341,0.00113685,3131.5,3130.6,0.00397897]
[1641690713541,0.79977685,3131.5,3130.6,0.00397897]
[1641690714145,0.77278694,3131.0,3130.6,0.00397897]
[1641690714343,0.46,3131.2,3130.6,0.00397897]
[1641690714544,1.59779,3130.9,3130.6,0.00397897]
[1641690714742,0.46,3131.0,3130.6,0.00397897]
[1641690714941,1.25892,3131.0,3130.6,0.00397897]
[1641690715544,0.7989434,3130.8,3129.9,2.0]
[1641690715743,0.7989434,3130.8,3129.8,5.33404304]
[1641690715744,2.3969434,3130.8,3129.8,5.33404304]
[1641690715944,0.799,3130.6,3129.8,5.33404304]
[1641690716144,0.799,3130.6,3130.4,6.008e-05]
[1641690716391,1.598,3130.8,3129.7,1.40594304]
[1641690716392,3.7,3130.5,3129.7,1.40594304]
[1641690716897,3.7,3130.5,3129.3,3.99759997]
[1641690716898,5.29819,3130.5,3129.8,0.00454738]
[1641690717092,6.89628,3130.5,3130.4,2.40095]
[1641690717292,6.89628,3130.5,3129.7,0.00511581]
[1641690717293,0.67756169,3130.0,3129.7,0.00511581]
[1641690717491,0.67756169,3130.0,3129.6,1.40594304]
[1641690717698,0.46,3129.9,3129.6,1.40594304]
[1641690717892,4.55,3129.8,3129.5,1.41783747]
[1641690718097,1.45458908,3129.8,3129.5,3.747e-05]
[1641690718291,4.55,3129.7,3129.2,0.0022737]
[1641690718493,3.79402765,3129.6,3129.2,0.0022737]
[1641690718694,1.86044202,3129.5,3129.3,0.00170527]
[1641690718895,0.6204069,3128.9,3127.9,3.653]
[1641690719091,0.6204069,3128.9,3127.7,4.55386461]
[1641690719092,0.79946,3128.4,3127.7,4.55386461]
[1641690719294,0.79946,3128.4,3128.0,0.00738951]
[1641690719893,0.7996,3128.4,3127.8,0.00852635]
[1641690720150,0.46,3128.6,3127.8,0.00852635]
[1641690720546,1.59915,3128.2,3127.8,0.00852635]
[1641690720947,1.59915,3128.2,3127.4,0.01080005]
[1641690721548,5.8291,3128.8,3128.1,1.12403541]
[1641690721749,2.39837,3128.9,3128.1,1.12403541]
[1641690721948,2.39837,3128.9,3128.2,0.00625266]
[1641690722151,1.59844,3129.3,3128.2,0.80547266]
[1641690722550,1.59844,3129.3,3128.1,1.42403541]
[1641690722551,0.6934436,3129.3,3128.3,0.00568424]
[1641690722750,0.79926,3128.8,3128.3,0.00568424]
[1641690722950,0.46,3128.7,3128.2,0.00625266]
[1641690723149,1.59921,3128.6,3127.9,0.00795793]
[1641690723349,0.46,3128.7,3127.5,0.01023162]
[1641690723350,0.46,3128.5,3127.5,0.01023162]
[1641690723550,0.67460186,3128.2,3127.4,0.01080005]
[1641690723752,0.79967,3127.9,3127.4,0.01080005]
[1641690724393,0.79967,3127.9,3127.2,0.01193689]
[1641690724993,0.79971,3127.7,3127.2,0.01193689]
[1641690725196,1.79971,3127.7,3127.2,0.01193689]
[1641690725394,0.46,3127.6,3127.1,0.01250532]
[1641690725994,0.07118739,3127.5,3127.1,0.01250532]
[1641690726196,0.79983,3127.3,3127.1,0.01250532]
[1641690726397,0.46,3127.2,3127.0,6.16]
[1641690726596,0.53118739,3127.2,3127.0,6.16]
[1641690726796,0.07118739,3127.1,3127.0,6.16]
[1641690726995,0.53118739,3127.1,3127.0,6.16]
[1641690727396,1.00592684,3127.2,3127.0,6.16]
[1641690727653,0.07118739,3127.1,3127.0,6.16]
[1641690727840,0.53118739,3127.1,3127.0,9.36]
[1641690728042,0.46,3127.1,3127.0,9.36]
[1641690728341,3.69939,3127.9,3127.0,9.36]
[1641690728342,2.05937,3127.8,3127.0,9.36]
[1641690728540,0.79965,3127.6,3127.0,9.36]
[1641690728940,0.0022737,3127.5,3127.0,9.36]
[1641690729340,0.00170527,3127.4,3127.0,9.36]
[1641690729740,0.00113685,3127.3,3127.0,9.36]
[1641690730341,0.00113685,3127.3,3127.0,3.2]
[1641690732296,0.7980717,3127.5,3127.0,3.2]
[1641690732498,0.46,3127.8,3127.0,3.2]
[1641690732499,1.59937,3127.7,3127.0,3.2]
[1641690732699,0.00170527,3127.6,3127.1,0.00113685]
[1641690733096,0.46113685,3127.5,3127.1,0.00113685]
[1641690733297,0.79983,3127.3,3127.1,0.00113685]
[1641690733498,0.79983,3127.3,3127.0,3.15113685]
[1641690733697,1.0,3127.9,3127.0,3.15113685]
[1641690733698,0.33742666,3128.0,3127.0,3.15113685]
[1641690733900,1.37232254,3127.8,3127.0,3.15113685]
[1641690734098,0.00113685,3127.5,3127.0,3.15113685]
[1641690734397,1.59982,3127.2,3127.0,3.15113685]
[1641690735001,0.07118739,3127.1,3127.0,3.15113685]
[1641690735251,0.00113685,3127.5,3127.0,3.15113685]
[1641690735452,1.59951,3127.4,3127.0,3.15284212]
[1641690735652,1.67069739,3127.4,3127.0,3.15284212]
[1641690736450,0.07118739,3127.3,3127.0,3.15284212]
[1641690736851,0.79975,3127.2,3127.0,3.15284212]
[1641690737452,2.39923,3128.1,3127.8,1.57914329]
[1641690737659,0.76,3128.0,3127.8,1.57914329]
[1641690737953,0.83118739,3128.0,3127.8,1.57914329]
[1641690738153,0.79973,3127.9,3127.8,1.57914329]
[1641690738353,0.07118739,3127.9,3127.8,1.57914329]
[1641690738553,0.83499329,3128.3,3127.8,1.57914329]
[1641690738554,0.78499329,3128.3,3127.8,1.57914329]
[1641690738996,0.00397896,3128.2,3127.8,1.57914329]
[1641690739195,0.79953,3128.0,3127.8,1.57914329]
[1641690739596,0.00227369,3127.9,3127.8,1.57914329]
[1641690740597,0.79953,3128.0,3127.8,1.57914329]
[1641690741298,0.79953,3128.0,3127.1,3.8667737]
[1641690741299,4.2,3127.9,3127.1,3.8667737]
[1641690741499,4.2,3127.9,3127.1,0.0022737]
[1641690741500,0.79977,3127.7,3127.1,0.0022737]
[1641690741798,0.79977,3127.7,3126.7,0.00682108]
[1641690741997,0.46,3127.6,3126.7,0.00682108]
[1641690743442,0.46,3127.6,3126.6,0.0073895]
[1641690744243,1.02886179,3127.1,3126.6,0.0073895]
[1641690744443,0.79996,3126.9,3126.6,0.0073895]
[1641690745245,0.46,3126.8,3126.6,0.0073895]
[1641690745450,3.55,3126.7,3126.5,1.42918125]
[1641690745645,1.26007,3126.6,3126.5,1.42918125]
[1641690745944,1.33125739,3126.6,3126.2,1.42918125]
[1641690746146,2.72972482,3126.6,3126.2,1.42918125]
[1641690746394,2.72972482,3126.6,3126.3,0.00170527]
[1641690746395,1.60015,3126.4,3126.3,0.00170527]
[1641690746694,2.06015,3126.4,3126.3,0.00170527]
[1641690747496,1.11993155,3126.8,3126.3,0.00170527]
[1641690747696,0.07118739,3126.5,3126.0,0.00341054]
[1641690747999,0.53118739,3126.5,3126.0,0.00341054]
[1641690748296,92.23891698,3128.5,3126.0,0.00341054]
[1641690748496,1.13118739,3127.0,3126.0,0.00341054]
[1641690748699,1.60129634,3126.8,3126.3,3.2]
[1641690748897,0.46,3126.7,3126.3,3.2]
[1641690749097,1.60018,3126.6,3126.4,0.00113685]
[1641690749297,2.06018,3126.6,3126.4,0.00227369]
[1641690749497,2.13136739,3126.6,3126.4,0.00227369]
[1641690749700,4.65012,3126.5,3126.3,3.2]
[1641690749897,5.18130739,3126.5,3126.3,3.2]
[1641690750155,2.42215471,3126.5,3126.3,3.2]
[1641690750347,2.42215471,3126.5,3125.8,6.16]
[1641690750348,4.62118739,3126.4,3125.8,6.16]
[1641690750551,0.80026,3126.1,3125.8,6.16]
[1641690750748,0.80026,3126.1,3125.9,0.00284212]
[1641690750749,1.26026,3126.1,3125.9,0.00284212]
[1641690750947,1.26026,3126.1,3125.8,6.16]
[1641690750948,2.06051,3126.1,3125.8,6.16]
[1641690751147,2.06051,3126.1,3125.7,1.42918125]
[1641690751148,0.07118739,3126.0,3125.7,1.42918125]
[1641690751447,0.80027,3125.9,3125.7,1.42918125]
[1641690751846,0.87145739,3125.9,3125.7,1.42918125]
[1641690752449,0.46,3126.1,3125.8,5.55874959]
[1641690752450,0.79997,3126.1,3125.8,5.55874959]
[1641690752648,1.67117739,3126.4,3125.8,5.55874959]
[1641690752851,1.59999,3126.4,3125.8,5.55874959]
[1641690753051,0.0022737,3126.3,3125.9,2.85305466]
[1641690753248,0.0022737,3126.3,3125.7,0.0126529]
[1641690753448,0.00170527,3126.2,3125.7,1.41232317]
[1641690753748,0.00113685,3126.1,3125.7,1.71232317]
[1641690753996,0.00113685,3126.1,3125.7,1.41232317]
[1641690754196,0.00113685,3126.1,3125.8,1.8481074]
[1641690754393,0.00113685,3126.1,3125.8,1.84086507]
[1641690754594,0.00113685,3126.1,3125.7,1.41232317]
[1641690754794,0.80111685,3126.1,3125.7,1.41232317]
[1641690755196,0.80111685,3126.1,3125.7,0.0126529]
[1641690755396,0.76645761,3126.4,3125.7,0.0126529]
[1641690755598,2.4001,3126.8,3125.8,0.00170527]
[1641690755796,2.4001,3126.8,3125.7,1.83204881]
[1641690755797,1.60123685,3126.3,3125.7,1.83204881]
[1641690755995,7.66374359,3127.2,3125.5,4.55]
[1641690756196,0.46,3126.9,3125.8,0.00113685]
[1641690756398,0.00397896,3126.7,3125.8,0.00113685]
[1641690756598,0.80004,3126.4,3125.9,0.81219198]
[1641690756798,0.00341054,3126.6,3126.0,2.48441604]
[1641690756996,0.00170527,3126.3,3126.2,1.08927517]
[1641690757198,0.00284211,3126.5,3126.3,1.43143398]
[1641690757396,2.4001,3126.8,3126.3,1.43143398]
[1641690757845,0.00397896,3126.7,3125.9,0.01232278]
[1641690758047,0.66390444,3127.2,3126.0,4.45]
[1641690758249,0.07118739,3127.2,3126.1,2.22015065]
[1641690758446,0.00227369,3127.1,3126.1,2.22356119]
[1641690758645,2.4001,3126.8,3126.2,0.00284212]
[1641690759045,0.7999,3126.6,3126.2,0.00284212]
[1641690759245,0.7999,3126.6,3126.0,0.00397896]
[1641690760252,0.7999,3126.6,3126.0,1.84061262]
[1641690760449,0.7999,3126.6,3126.5,1.43758051]
[1641690760850,0.7999,3126.6,3126.5,1.43871736]
[1641690761496,0.7999,3126.6,3126.5,0.00113685]
[1641690761896,0.7999,3126.6,3126.0,0.00397896]
[1641690762297,0.7999,3126.6,3126.0,1.85583669]
[1641690762701,0.7999,3126.6,3126.1,0.00341054]
[1641690763098,2.8599,3127.1,3126.1,0.00341054]
[1641690763297,2.8599,3127.1,3126.1,1.29897695]
[1641690763499,2.8599,3127.1,3126.1,1.30068222]
[1641690763698,0.7999,3126.6,3126.2,0.00454739]
[1641690764397,0.7999,3126.6,3126.1,0.00511581]
[1641690764598,2.5363233,3127.1,3126.2,2.3]
[1641690764998,0.1364233,3127.1,3126.3,0.00397896]
[1641690765246,0.1364233,3127.1,3126.9,1.44263309]
[1641690765247,1.59963,3127.0,3126.9,1.44263309]
[1641690765646,0.46,3127.5,3126.9,1.44263309]
[1641690765849,3.23462501,3127.6,3126.7,1.44263309]
[1641690765850,2.39944,3127.6,3126.7,1.44263309]
[1641690766049,2.39944,3127.6,3126.7,1.74263309]
[1641690766050,0.00227369,3127.4,3126.7,1.74263309]
[1641690766245,0.00227369,3127.4,3126.8,1.15762594]
[1641690766246,0.80191369,3127.4,3126.8,1.15762594]
[1641690766447,0.00170527,3127.3,3126.8,1.15762594]
[1641690766645,0.00170527,3127.3,3127.2,0.65310812]
[1641690766946,2.05916,3127.9,3127.2,0.65310812]
[1641690766947,0.46,3127.9,3127.2,0.65310812]
[1641690767347,0.00454739,3127.8,3127.2,0.65310812]
[1641690767546,1.5993,3127.6,3127.1,1.44263309]
[1641690767753,1.5993,3127.6,3127.0,1.44263309]
[1641690767948,0.79971,3127.3,3127.0,1.44263309]
[1641690768350,0.00113685,3127.2,3127.0,1.44263309]
[1641690768746,0.00113685,3127.2,3127.0,2.28638036]
[1641690769296,0.00113685,3127.2,3127.1,1.44263309]
[1641690769496,1.5993,3127.6,3127.1,1.44263309]
[1641690769896,0.00170527,3127.5,3127.1,1.44263309]
[1641690770101,0.79969,3127.3,3127.0,5.48638036]
[1641690770998,0.79969,3127.3,3127.0,4.04374727]
[1641690772297,0.79969,3127.3,3127.0,3.2]
[1641690777097,0.00113684,3127.4,3127.0,3.2]
[1641690778498,0.79963,3127.3,3127.0,3.2]
[1641690781557,0.00113684,3127.4,3127.0,3.2]
[1641690782754,0.79964,3127.3,3127.0,3.2]
[1641690783155,0.79964,3127.3,3127.0,0.38241748]
[1641690783156,0.07118739,3127.2,3127.0,0.38241748]
[1641690783360,5.01,3127.1,3126.8,0.00113685]
[1641690783756,5.01,3127.1,3126.5,1.44263309]
[1641690783757,4.4,3126.9,3126.5,1.44263309]
[1641690783996,1.26002,3126.8,3126.5,1.44263309]
[1641690784199,1.33234423,3126.8,3126.5,1.44263309]
[1641690784397,0.07118739,3126.7,3126.5,1.44263309]
[1641690784597,0.46,3126.6,3126.3,1.44263309]
[1641690784997,0.07118739,3126.5,3126.4,0.00113685]
[1641690785198,0.53118739,3126.5,3126.4,0.00113685]
[1641690786198,0.53118739,3126.5,3125.9,0.00397897]
[1641690786399,0.53118739,3126.5,3125.8,0.00454739]
[1641690786599,0.07118739,3126.4,3125.8,0.00454739]
[1641690786802,0.8,3126.1,3125.8,0.00454739]
[1641690787848,0.46,3126.5,3125.8,0.00454739]
[1641690788249,0.07118739,3126.4,3125.8,0.00454739]
[1641690788850,0.79997,3126.1,3125.8,0.00454739]
[1641690789354,0.79997,3126.1,3125.8,3.20454739]
[1641690789749,0.79997,3126.1,3125.9,0.00397897]
[1641690791150,0.79997,3126.1,3125.7,0.00511582]
[1641690795648,0.83637332,3126.2,3125.7,0.00511582]
[1641690796050,0.83637332,3126.2,3125.7,1.86822821]
[1641690796249,0.79997,3126.1,3125.7,1.86822821]
[1641690796450,0.79997,3126.1,3125.8,0.00454739]
[1641690796652,0.79997,3126.1,3125.9,0.74252352]
[1641690797049,0.79997,3126.1,3126.0,0.00341054]
[1641690797450,0.79997,3126.1,3125.9,0.00397897]
[1641690798350,0.79997,3126.1,3125.8,0.7999221]
[1641690798351,0.79997,3126.1,3125.8,0.75390107]
[1641690799198,0.79997,3126.1,3125.8,0.69871088]
[1641690799599,0.79997,3126.1,3125.8,0.64871088]
[1641690801601,0.79997,3126.1,3125.9,0.7999096]
[1641690802651,0.79997,3126.1,3125.9,1.5997896]
[1641690803244,0.79997,3126.1,3125.9,0.7999096]
[1641690803649,2.40098684,3126.8,3126.1,0.79979]
[1641690803848,2.40098684,3126.8,3126.2,0.7997872]
[1641690804046,0.07118739,3127.1,3126.1,1.2811]
[1641690804047,0.00454739,3126.7,3126.1,3.5978133]
[1641690804246,0.00454739,3126.7,3126.1,3.8978133]
[1641690804444,1.59942,3127.1,3126.1,3.8978133]
[1641690804445,0.00397897,3126.6,3126.1,3.8978133]
[1641690804645,0.00397897,3126.6,3126.3,1.21196744]
[1641690804844,1.59942,3127.1,3126.3,2.31172744]
[1641690804845,0.00341054,3126.5,3126.3,2.31172744]
[1641690805048,0.00341054,3126.5,3126.3,3.31172744]
[1641690805247,0.00284212,3126.4,3126.3,4.91112084]
[1641690805647,0.00284212,3126.4,3126.3,3.6991534]
[1641690805848,0.00284212,3126.4,3126.3,2.8993934]
[1641690807299,0.00284212,3126.4,3126.3,6.2993934]
[1641690807900,0.00284212,3126.4,3126.3,7.74202649]
[1641690808100,0.79976,3126.6,3126.5,2.6]
[1641690808500,0.80089685,3126.6,3126.3,3.84173649]
[1641690809200,0.80089685,3126.6,3126.4,1.0]
[1641690809602,0.00113685,3126.6,3126.5,0.3]
[1641690810261,0.00113685,3126.6,3126.4,4.999696]
[1641690810648,0.00113685,3126.6,3126.5,0.3]
[1641690810848,0.00113685,3126.6,3126.4,4.2]
[1641690811050,0.00113685,3126.6,3126.4,3.2]
[1641690812252,0.79979,3126.5,3126.4,3.2]
[1641690812452,0.00113685,3126.6,3126.4,4.2]
[1641690812755,0.00113685,3126.6,3126.5,5.85]
[1641690813352,0.00113685,3126.6,3126.5,6.99942629]
[1641690813552,0.00113685,3126.6,3126.5,2.39942629]
[1641690813751,0.00113685,3126.6,3126.5,5.63782629]
[1641690814017,0.00113685,3126.6,3126.5,4.4884]
[1641690814416,0.00113685,3126.6,3126.5,5.92359075]
[1641690814717,0.00113685,3126.6,3126.5,2.68519075]
[1641690815320,0.00113685,3126.6,3126.5,1.25]
[1641690817952,0.00113685,3126.6,3126.5,3.11833089]
[1641690818147,0.79973,3126.7,3126.5,1.86833089]
[1641690818647,0.79973,3126.7,3126.5,3.30352164]
[1641690818846,0.79973,3126.7,3126.5,1.43519075]
[1641690819248,0.79973,3126.7,3126.4,4.63519075]
[1641690819449,2.41222955,3127.5,3126.4,4.63519075]
[1641690819751,0.00113684,3126.8,3126.4,4.63519075]
[1641690820049,0.79985,3126.6,3126.4,3.2]
[1641690822605,0.79985,3126.6,3126.4,2.26107329]
[1641690822606,1.62265,3126.6,3126.4,2.26107329]
[1641690822804,4.3,3126.5,3125.9,1.43519075]
[1641690823008,1.60017,3126.3,3125.9,1.43519075]
[1641690823205,1.60017,3126.3,3126.0,0.00341054]
[1641690823607,2.40026,3126.3,3126.0,0.00341054]
[1641690824207,2.40026,3126.3,3125.8,0.00454739]
[1641690824507,1.6002,3126.1,3125.8,0.00454739]
[1641690825950,0.80011,3126.0,3125.8,0.00454739]
[1641690826551,0.80011,3126.0,3125.8,3.2701758]
[1641690826749,0.75011,3126.0,3125.8,3.2701758]
[1641690826950,0.75011,3126.0,3125.9,0.00397897]
[1641690827650,0.75011,3126.0,3125.8,2.63916381]
[1641690827850,0.75011,3126.0,3125.9,1.86114716]
[1641690828053,1.59971,3126.4,3125.9,1.86512613]
[1641690828251,1.59971,3126.4,3125.9,0.00397897]
[1641690828451,0.07232423,3126.8,3125.9,0.00397897]
[1641690828653,0.07232423,3126.8,3125.9,1.85809734]
[1641690828901,0.07232423,3126.8,3125.9,2.65797734]
[1641690829101,0.07232423,3126.8,3126.0,1.44115981]
[1641690829502,0.79992,3126.4,3126.1,0.00284212]
[1641690830504,0.87110739,3126.4,3126.1,1.44400193]
[1641690830708,0.87110739,3126.4,3126.1,0.89513575]
[1641690830903,0.87110739,3126.4,3125.5,3.7769]
[1641690830904,0.80016,3125.9,3125.5,3.7769]
[1641690831103,0.80016,3125.9,3124.9,1.1758]
[1641690831304,0.80016,3125.9,3125.6,0.00284212]
[1641690831503,0.80016,3125.8,3125.6,0.00284212]
[1641690832103,0.80019,3125.5,3125.2,0.00511581]
[1641690834954,2.8605,3125.9,3125.2,0.00511581]
[1641690835555,1.60038,3125.6,3125.2,0.00511581]
[1641690835761,1.60038,3125.6,3124.8,2.26212702]
[1641690835956,1.60038,3125.6,3124.9,0.00682108]
[1641690836155,1.67156739,3125.6,3124.9,0.00682108]
[1641690836601,0.03654133,3125.6,3124.9,0.00682108]